Cogmind - Beta 16 @@@ ROGUE MODE // 2025.11.12 @ 00:15:13 Player: Runia Result: Destroyed by D-53 Grenadier with Mini Grenade Launcher Performance ------------- Evolutions (0) 0 Regions Visited (2) 400 Robots Destroyed (41) 205 Value Destroyed (856) 856 Prototype IDs (3) 60 Alien Tech Used (0) 0 Bonus (0) 0 TOTAL SCORE: 1521 Bonus ------- None Cogmind --------- Core Integrity 0/250 Matter 157/300 Energy 63/100 System Corruption 0% Temperature Cool (0) Movement Treading (720) Ox7 Location -10/Mines Parts ------- > --- POWER (1) -------- (None) > --- PROPULSION (2) --- Light Treads Compact Wheel > --- UTILITY (2) ------ Cargo Storage Unit > --- WEAPON (2) ------- Particle Gun Autogun > --- INVENTORY (30) --- Light Treads Light Treads Light Treads Light Treads Wheel Wheel Improved Heat Sink Huge Storage Unit Large Battery (200) Large Matter Pod (150) ECM Suite Light Armor Plating Hardened Light Armor Plating Hardened Light Armor Plating Hardened Light Armor Plating Hardened Light Armor Plating Shield Generator Shield Generator Heavy EM Pulse Gun Heavy EM Pulse Gun Heavy EM Pulse Gun Particle Gun Mining Laser Hammer Peak State ------------ > --- POWER ------------ Ion Engine > --- PROPULSION ------- Compact Wheel Improved Flight Unit > --- UTILITY ---------- Cargo Storage Unit > --- WEAPON ----------- Autogun Autogun > --- INVENTORY -------- Ion Engine Light Nuclear Core Light Treads Light Treads Light Treads Light Treads Wheel Wheel Compact Wheel Improved Heat Sink Large Storage Unit Large Battery Large Matter Pod Light Armor Plating Hardened Light Armor Plating Hardened Light Armor Plating Hardened Light Armor Plating Hardened Light Armor Plating Shield Generator Shield Generator Heavy EM Pulse Gun Heavy EM Pulse Gun Heavy EM Pulse Gun Particle Gun Particle Gun Autogun Autogun Grenade Launcher Mining Laser Hammer [Rating: 15] Favorites ----------- Power Ion Engine Engine Ion Engine Power Core Light Nuclear Core Propulsion Compact Wheel Treads Light Treads Leg Aluminum Leg Wheel Compact Wheel Flight Unit Improved Flight Unit Utility Cargo Storage Unit Device Improved Heat Sink Storage Cargo Storage Unit Weapon Autogun Energy Gun Small Laser Ballistic Gun Autogun Launcher Grenade Launcher Impact Weapon Hammer Build | -11 -10 -10 ------- Run | Yrd Mat Min Slots Evolved . | . . . Power . | . . . Propulsion . | . . . Utility . | . . . Weapon . | . . . Parts Attached 23 | 4 14 5 Power 4 | . 3 1 Engine 3 | . 3 . Core 1 | . . 1 Reactor . | . . . Propulsion 7 | 3 2 2 Treads 3 | 2 . 1 Leg . | . . . Wheel 3 | 1 1 1 Hover . | . . . Flight 1 | . 1 . Utility 3 | . 3 . Device 1 | . 1 . Storage 2 | . 2 . Processor . | . . . Hackware . | . . . Protection . | . . . Artifact . | . . . Weapon 9 | 1 6 2 Energy Gun 2 | . 1 1 Energy Cannon . | . . . Ballistic Gun 5 | 1 3 1 Ballistic Cannon . | . . . Launcher 1 | . 1 . Special Weapon . | . . . Impact Weapon 1 | . 1 . Slashing Weapon . | . . . Piercing Weapon . | . . . Special Melee Weapon . | . . . Unidentified Prototypes 1 | . 1 . Parts Lost 8 | . 2 6 Power 2 | . . 2 Propulsion 1 | . . 1 Utility . | . . . Weapon 5 | . 2 3 Highest Loss Streak 5 | . 1 5 To Critical Strikes . | . . . Average Backups 25 | 5 24 28 Power 1 | 1 1 . Propulsion 6 | 3 5 6 Utility 9 | . 8 12 Weapon 8 | 1 8 9 Tool/Special . | . . . Unused Backups 29 | . 8 21 Power . | . . . Propulsion 6 | . 1 5 Utility 13 | . 2 11 Weapon 10 | . 5 5 Tool/Special . | . . . Average Slot Usage (%) 85 | . 85 83 Engine 11 | . 13 5 Core 1 | . . 8 Treads 13 | . 13 13 Wheel 14 | . 14 14 Storage 14 | . 14 14 Ballistic Gun 23 | . 22 25 Impact Weapon 3 | . 4 . Peak Build Rating 15 | 6 15 15 Average Rating 11 | 5 11 13 On Entrance 8 | 6 6 12 Avg Prop Armor Cover (%) 11 | . 12 11 Naked Turns . | . . . Heaviest Build 151 | 13 151 151 Greatest Support 16 | 16 16 16 Greatest Overweight (x) 9 | . 9 9 Average Overweight (x) 7 | . 7 8 Largest Inventory Capacity 30 | 8 30 30 Average Capacity 27 | 8 27 30 Most Carried 30 | 6 30 29 Average Carried 25 | 4 24 28 Final Capacity 30 | 8 30 30 Final Carried 29 | 4 29 24 Class Distribution -------------------- 89% | Hauler-Mutant 10% | Mutant Dominant Class ---------------- Hauler-Mutant | -10/Materials Hauler-Mutant | -10/Mines Resources | -11 -10 -10 ----------- Run | Yrd Mat Min Matter Collected 1343 | 194 1026 123 Remotely . | . . . Salvage Created 1599 | . 1346 253 Parts 71 | . 61 10 Haulers Intercepted 2 | . 2 . Recyclers Shooed 3 | . 3 . Parts Field Recycled . | . . . Retrieved Matter . | . . . Parts Self-Destructed . | . . . Prevented . | . . . Parts Restored . | . . . Kills | -11 -10 -10 ------- Run | Yrd Mat Min Combat Hostiles Destroyed 41 | . 22 19 Guns 13 | . 12 1 AOE 28 | . 10 18 Classes Destroyed 8 | . 7 1 Worker 1 | . 1 . Builder 2 | . 2 . Hauler 2 | . 2 . Recycler 10 | . 7 3 Operator 1 | . 1 . Swarmer 6 | . 3 3 Grunt 19 | . 19 . Assembled 16 | . . 16 Best Kill Streak 17 | . 5 17 Combat Bots Only 16 | . 3 16 Max Kills in Single Turn 3 | . 3 3 Gunslinging . | . . . Exploded 3 | . 2 3 Melee . | . . . Uniques/NPCs Destroyed . | . . . Combat | -11 -10 -10 -------- Run | Yrd Mat Min Hostile Shots Fired 143 | . 84 59 Missed 33 | . 17 16 Hits 110 | . 67 43 Melee 2 | . . 2 Projectile 108 | . 67 41 AOE 4 | . . 4 Damage Taken 1469 | . 820 649 Core 264 | . 131 133 Absorbed by Shields . | . . . Core Remaining (%) 100 | 100 . . Volleys Fired 105 | . 84 21 Largest 2 | . 2 2 Hottest 60 | . 60 46 Shots Fired 183 | . 155 28 Gun 157 | . 143 14 Cannon . | . . . Launcher 26 | . 12 14 Special . | . . . Kinetic 154 | . 140 14 Thermal 3 | . 3 . Explosive 26 | . 12 14 Electromagnetic . | . . . Robot Hit Streak 11 | . 11 5 Robot Miss Streak 3 | . 3 2 Penetration Max . | . . . Secondary Targets . | . . . Shots Hit Robots 121 | . 110 11 Core Hits 91 | . 54 37 Critical Kills 1 | . 1 . Critical Parts Destroyed 1 | . 1 . Critical Strikes 2 | . 2 . Destroy 1 | . 1 . Smash 1 | . 1 . Melee Attacks 7 | . 7 . Impact 7 | . 7 . Slashing . | . . . Piercing . | . . . Sneak Attacks 7 | . 7 . Combat Hostiles . | . . . Follow-up Attacks . | . . . Damage Inflicted 3783 | . 2554 1229 Guns 1405 | . 1269 136 Cannons . | . . . Explosions 2041 | . 948 1093 Melee 337 | . 337 . Ramming . | . . . Kinetic 1372 | . 1236 136 Thermal 33 | . 33 . Explosive 2041 | . 948 1093 Electromagnetic . | . . . Impact 337 | . 337 . Slashing . | . . . Piercing . | . . . Highest Corruption . | . . . Average Corruption . | . . . Corruption Purged . | . . . Corruption Blocked . | . . . Overload Shots . | . . . Overflow Damage 169 | . 147 22 Projectiles . | . . . Explosions 44 | . 22 22 Melee 125 | . 125 . Knockbacks 1 | . 1 . Impact 1 | . 1 . Kinetic . | . . . Secondary . | . . . Self-Inflicted Damage 66 | . 14 52 Shots 4 | . 1 3 Rammed . | . . . Targets Rammed . | . . . Kicked . | . . . Crushed . | . . . Highest Temperature 49 | . 49 17 Average Temperature 12 | . 12 8 Received Heat Transfer 452 | . 432 20 Siege Activations . | . . . Martial Activations . | . . . Shielding Activations . | . . . Robots Disrupted . | . . . Combat Hostiles . | . . . Robots Corrupted 1 | . 1 . Combat Hostiles . | . . . Parts Fried 2 | . 2 . Impact Corruptions 5 | . 5 . Robots Melted . | . . . Combat Hostiles . | . . . Parts Melted . | . . . Heat Transferred 75 | . 75 . Parts Sabotaged . | . . . Parts Stolen . | . . . Parts Stripped . | . . . Power Chain Reactions . | . . . Alert | -11 -10 -10 ------- Run | Yrd Mat Min Maximum Alert Level 1 | . 1 . Low Security (%) 91 | 100 89 100 Level 1 8 | . 10 . Level 2 . | . . . Level 3 . | . . . Level 4 . | . . . Level 5 . | . . . High Security . | . . . Max Security . | . . . Peak Influence 297 | . 297 79 Initial 21 | . . 21 Average 71 | . 89 12 Influence Increases 934 | . 788 146 Destroy 0b10 Robot/C 500 | . 440 60 Destroy 0b10 Robot/NC 80 | . 65 15 Destroy Leader 114 | . 104 10 Successful Hack 17 | . 17 . Select Force Hacks 60 | . 60 . Disable Machine 30 | . . 30 Destroy Structure 103 | . 72 31 Lose Combat Pursuer 30 | . 30 . Influence Decreases 934 | . 734 200 Entered New Map 33 | . . 33 Time Decay 707 | . 564 143 Lost Part 44 | . 20 24 Purge Threat 150 | . 150 . Squads Dispatched 6 | . 6 . Investigation 4 | . 4 . Extermination . | . . . Reinforcement 2 | . 2 . Assault . | . . . Garrison . | . . . Intercept . | . . . Searches Triggered . | . . . Construction Impeded . | . . . Haulers Reinforced . | . . . Active Scanning Responses . | . . . Cargo Convoy Interrupts . | . . . Stealth | -11 -10 -10 --------- Run | Yrd Mat Min Distress Signals 3 | . 3 . Communications Jammed . | . . . Distress Signals . | . . . Times Spotted 60 | . 35 25 Peak Tracking Total 20 | . 4 20 Tactical Retreats 2 | . 2 . Traps | -11 -10 -10 ------- Run | Yrd Mat Min Traps Triggered 2 | . 2 . Indirectly . | . . . Trap Hack Attempts . | . . . Triggered . | . . . Disarmed . | . . . Reprogrammed . | . . . Reused . | . . . Traps Extracted . | . . . Installed . | . . . Triggered . | . . . Machines | -11 -10 -10 ---------- Run | Yrd Mat Min Machines Disabled 2 | . . 2 Max in Single Turn 1 | . . 1 Machines Repaired . | . . . Machines Dismantled . | . . . Machines Sabotaged . | . . . Overloaded Fab Kills . | . . . Hacking | -11 -10 -10 --------- Run | Yrd Mat Min Machines Accessed 9 | . 8 1 Terminals 7 | . 6 1 Fabricators . | . . . Repair Stations . | . . . Recycling Units 2 | . 2 . Scanalyzers . | . . . Garrison Access . | . . . Total Hacks 23 | . 21 2 Successful 14 | . 13 1 Failed 9 | . 8 1 Catastrophic . | . . . Database Lockouts . | . . . Manual 15 | . 13 2 Terminals 21 | . 19 2 Fabricators . | . . . Repair Stations . | . . . Recycling Units 2 | . 2 . Scanalyzers . | . . . Garrison Access . | . . . Terminal Hacks 6 | . 5 1 Part Schematic 1 | . . 1 Prototype ID Bank 1 | . 1 . Unreport Threat 1 | . 1 . Locate Traps 2 | . 2 . Patrol Status 1 | . 1 . Fabricator Hacks . | . . . Repair Station Hacks . | . . . Recycling Unit Hacks . | . . . Scanalyzer . | . . . Garrison Access Hacks . | . . . Unauthorized Hacks 8 | . 8 . Terminals 6 | . 6 . Botnet 1 | . 1 . Skim 5 | . 5 . Fabricators . | . . . Repair Stations . | . . . Recycling Units 2 | . 2 . Tunnel 2 | . 2 . Scanalyzers . | . . . Garrison Access . | . . . Data Cores Recovered . | . . . Used . | . . . Hacking Detections 7 | . 6 1 Full Trace Events . | . . . Feedback Events . | . . . Feedback Blocked . | . . . Robot Schematics Acquired . | . . . Robots Built . | . . . Authchips . | . . . Time . | . . . Total Robot Build Rating . | . . . Part Schematics Acquired 1 | . . 1 Parts Built . | . . . Authchips . | . . . Time . | . . . Total Part Build Rating . | . . . Part Studies Acquired . | . . . Parts Repaired . | . . . Time . | . . . Parts Recycled . | . . . Recycled Matter . | . . . Retrieved Matter . | . . . Retrieved Components . | . . . Parts Scanalyzed . | . . . Part Schematics Acquired . | . . . Parts Damaged . | . . . Bothacking | -11 -10 -10 ------------ Run | Yrd Mat Min Used RIF Installer . | . . . Robots Hacked . | . . . Non-combat . | . . . Combat . | . . . Robot Hacks Applied . | . . . Relay Couplers Released . | . . . Fabnet Peak Effective % . | . . . Robots Rewired . | . . . Allies Hacked . | . . . Hacks Repelled . | . . . Allies | -11 -10 -10 -------- Run | Yrd Mat Min Total Allies . | . . . Largest Group . | . . . Highest-Rated Group . | . . . Highest-Rated Ally . | . . . Total Orders . | . . . Ally Attacks . | . . . Total Damage . | . . . Kills . | . . . Allies Corrupted . | . . . Allies Melted . | . . . Intel | -11 -10 -10 ------- Run | Yrd Mat Min Active Infowar (turns) . | . . . Robot Analysis Total . | . . . Derelict Logs Recovered . | . . . Drone Launches . | . . . Drone Recoveries . | . . . Exploration | -11 -10 -10 ------------- Run | Yrd Mat Min Turns Passed 2945 | 11 2228 706 Spaces Moved 1155 | 1 899 255 Core . | . . . Treads . | . . . Legs . | . . . Wheels 1155 | 1 899 255 Hover . | . . . Flight . | . . . Fastest Speed 100 | 100 100 220 Average Speed 213 | 100 207 234 Slowest Speed 235 | 100 235 235 Overloaded Moves . | . . . Propulsion Burnouts . | . . . Robots Hopped . | . . . Potential Cave-ins . | . . . Cave-ins Triggered . | . . . Exploration Rate (%) 49 | 2 97 50 Regions Visited 2 Branch Regions 1 Pre-discovered Areas 3 | . 3 . Known Exits Taken . | . . . Unknown Exits Taken 2 | 1 1 . Scrap Searched . | . . . Spaces Dug 7 | . 5 2 Terrain Destroyed 107 | . 75 32 Melee . | . . . Projectile . | . . . AOE 107 | . 75 32 Terrain Rammed . | . . . Walls Destroyed . | . . . Machines Disabled . | . . . Actions | -11 -10 -10 --------- Run | Yrd Mat Min Total 1462 | 11 1116 335 Wait 92 | 5 39 48 Move 1153 | . 898 255 Hop . | . . . Pick Up 41 | . 41 . Fast Attach 7 | . 7 . Attach 10 | 2 3 5 Detach . | . . . Swap 27 | 2 20 5 Drop 20 | 2 17 1 Fire 105 | . 84 21 Melee 7 | . 7 . Ram . | . . . Kick . | . . . Crush . | . . . Escape Stasis . | . . . Rewire . | . . . Trap . | . . . Miscellaneous . | . . . Route ------- -11/Scrapyard -10/Materials (discovered 5 exits: *Mat x3 / *Min / [*Sub]) -10/Mines (discovered 2 exits: *Mat x2) History --------- Turn | Location | Event 12 | -11/Scrapyard | Discovered new exit (range 0) 12 | -11/Scrapyard | Entered Materials 243 | -10/Materials | Discovered new exit (range 15) 426 | -10/Materials | Discovered new exit (range 12) 611 | -10/Materials | Build established: Hauler-Mutant 767 | -10/Materials | Discovered new exit (range 13) 1286 | -10/Materials | Discovered new exit (range 10) 1309 | -10/Materials | Discovered new exit (range 16) 1423 | -10/Materials | Core integrity fell below 50% 1748 | -10/Materials | Learned location of 2 exits from Materials 1810 | -10/Materials | Loaded intel: 5 trap records 1863 | -10/Materials | Learned Storage trap positions 1904 | -10/Materials | Learned location of 1 exit from Storage 1957 | -10/Materials | Learned Recycling recycling unit intel 1987 | -10/Materials | Learned location of 2 exits from Materials 2025 | -10/Materials | Learned location of Mines (-9) 2240 | -10/Materials | Entered Mines 2241 | -10/Mines | Identified exit to Materials 2891 | -10/Mines | Assembled infested the area 2907 | -10/Mines | Core integrity fell below 20% 2934 | -10/Mines | Destroyed 16 combat bots 2946 | -10/Mines | Destroyed by D-53 Grenadier with Mini Grenade Launcher Last Messages --------------- 02919_ U-05 Engineer lays Concrete. 02920_ Grenade Launcher destroyed. 02920_ K-01 Serf collects debris. 02921_ U-05 Engineer lays Concrete. 02924_ K-01 Serf collects debris. 02925_ U-05 Engineer lays Concrete. 02925_ as-99335 sneak attacks. 02925_ U-05 Engineer system corrupted by crushing effect. 02926_ U-05 Engineer system terminally corrupted. 02928_ K-01 Serf collects debris. 02935_ C-45 Heavy ARC bursts open, deploying its payload. 02935_ D-53 Grenadier unfolds itself. 02936_ Lgt. Nuclear Core destroyed. 02938_ as-99335 destroyed. 02938_ as-34536 destroyed. 02940_ as-50761 destroyed. 02942_ as-94710 destroyed. 02943_ The unstable cave ceiling collapses. 02944_ Autogun destroyed. 02944_ R-06 Scavenger destroyed. Map ----- +----------------------------------------------------+ | ##### "" #????????# ### ### ##??????? | | """ ##???????# ## ##?????? | | ## % ##??????# ## """" ###???? | | ### ##?????# #?# """" ####? | | #### ##???## #### """" ## | | ####?# ## ##??# ##??# # | | ?????# #### #??# ######### ## | | ?????## ##?## #??# #????#### ##? | | ??????##### ##?## ##?## ### #???????### ##?? | | ??????????## #??## ##?#### #?# #?????????# #??? | | ???????????## ##??## ##???# ### #??####???# #??? | | ???????###??## ##??# ###?# #?## ##### #??? | | ????#### #?## #??# ### ### ### #??? | | ???## ## #### ## #?# ## #??? | | ???# ## ### ######??? | | ??? ### #### ## ##???????? | | ?????????## ###??# ## ##????????? | | ??????????### ##??### ### ##?????????? | | ????????????## ## ##??? #?#######??????????? | | ?????????????### #####???? ####??????????????????? | | ???????????????# ###????## #?????????????????????? | | ???????????????# #?#### ###???????????? #????? | | ???????????????### #?# #??????????? #????? | | ?????????????????# #?##= #??????????# #????? | | ?????????????????# ### %= #####???### #????? | | ?????????????????# t!*!@ ### ##???? | | ?????????????????##### d #???? | | ?????????????????????# % ## ?? | | ????????????????#### ### ?? | | ????????????????# !%* d # ? | | ???????????????? """ ==k ? | | ??????????????? """ ## ## ? | | ?????????????? """??# ?# #????? | | ?????????????#???? ??? ?? ##????? | | ????????????????? ????###??# #????? | | ???????????????????????????## #????? | | ????????????????????????????#### ??? | | ???????????????????????????????#### #### ####?? | | ???????????????????????????????????####???? #????? | | ?????????????????????????????????????????????????? | | ?????????????????????????????????????????????????? | | ?????????????????????????????????????????????????? | | ?????????????????????????????????????????????????? | | ?????????????????????????????????????????????????? | | ?????????????????????????????????????????????????? | | ?????????????????????????????????????????????????? | | ?????????????????????????????????????????????????? | | ?????????????????????????????????????????????????? | | ?????????????????????????????????????????????????? | | ?????????????????????????????????????????????????? | +----------------------------------------------------+ Best States ------------- Heat Dissipation 39 Energy Generation 14 Energy Capacity 250 Matter Stores 300 Matter Capacity 300 Sight Range 16 Terrain Scan Density 10 Evasion (%) 40 Recoil Reduction 1 Item Schematics ----------------- Huge Storage Unit | -10/Mines | Hacked Robot Schematics ------------------ None Fabricated ------------ Nothing Repaired ---------- Nothing Studied --------- None Alien Tech Used ----------------- None Achievements -------------- None Challenges ------------ None Game ------ Seed SpreadHeatMatrix Manual? 0 Play Time 00:14:51 Cumulative 875.7 hours Start 2025.11.12 @ 00:02:39 End 2025.11.12 @ 00:15:13 Sessions 1 Manual Loads 0 Difficulty Rogue Special Mode None Game No. 749 Rogue 749 Adventurer 0 Explorer 0 Win Type - Total 46 Types 15/8/11/1/1/1/7/1/1/0 Lore% 80 Gallery% 84 Achievement% 58 Wizard Run 0 Options --------- Layout 0 ASCII 0 Keyboard 0 Movement Mouse Keybinds 1 Fullscreen 2 Font 24/Smallcaps Map View 76x50 Zoom Use 0% Tactical HUD 1 Map Filters NONE Filters NONE Steam 1 RUN: 756fa6ee-c9c4-40a1-b92a-b38e60d1c7c0